[Event "*** Titled Tuesday Blitz"]
[Site "Chess.com"]
[Date "2021.03.02"]
[Round "3"]
[White "grunbergmihai"]
[Black "KerryStead"]
[Result "1-0"]
[WhiteElo "2477"]
[BlackElo "2014"]
[TimeControl "180+1"]
[EndTime "10:28:28 PST"]
[Termination "grunbergmihai won on time"]

1. e4 {[%clk 0:03:00.9]} 1... d6 {[%clk 0:02:48.8]} 2. d4 {[%clk 0:03:00.8]}
2... c6 {[%clk 0:02:47]} 3. Nc3 {[%clk 0:03:01.7]} 3... Nf6 {[%clk 0:02:42.9]}
4. f4 {[%clk 0:03:01.5]} 4... e5 {[%clk 0:02:37.5]} 5. Nf3 {[%clk 0:02:59.4]}
5... Qc7 {[%clk 0:02:33.4]} 6. Bc4 {[%clk 0:02:54.8]} 6... Be7 {[%clk
0:02:30.4]} 7. dxe5 {[%clk 0:02:53.4]} 7... dxe5 {[%clk 0:02:29.3]} 8. Nxe5
{[%clk 0:02:53.2]} 8... O-O {[%clk 0:02:25]} 9. O-O {[%clk 0:02:52.6]} 9... Nbd7
{[%clk 0:02:19]} 10. Nxd7 {[%clk 0:02:52.2]} 10... Bxd7 {[%clk 0:02:17.9]} 11.
e5 {[%clk 0:02:51.4]} 11... Ne8 {[%clk 0:02:17]} 12. Be3 {[%clk 0:02:49.8]}
12... Bf5 {[%clk 0:02:14.6]} 13. Qe2 {[%clk 0:02:46.4]} 13... a5 {[%clk
0:02:06.2]} 14. a4 {[%clk 0:02:45.7]} 14... Rd8 {[%clk 0:01:53.4]} 15. g4 {[%clk
0:02:41.6]} 15... Be6 {[%clk 0:01:50.3]} 16. Bxe6 {[%clk 0:02:38]} 16... fxe6
{[%clk 0:01:49.3]} 17. Ne4 {[%clk 0:02:37.7]} 17... Qb8 {[%clk 0:01:35.4]} 18.
Qc4 {[%clk 0:02:36.1]} 18... Nc7 {[%clk 0:01:26.1]} 19. Bb6 {[%clk 0:02:35.1]}
19... Nd5 {[%clk 0:01:21.3]} 20. Bxd8 {[%clk 0:02:33.1]} 20... Qxd8 {[%clk
0:01:20.2]} 21. Rad1 {[%clk 0:02:31.4]} 21... Qb6+ {[%clk 0:01:19.1]} 22. Qd4
{[%clk 0:02:27.3]} 22... Qxd4+ {[%clk 0:01:15.6]} 23. Rxd4 {[%clk 0:02:26.9]}
23... Nxf4 {[%clk 0:01:12.4]} 24. Rd7 {[%clk 0:02:22.1]} 24... Ng6 {[%clk
0:01:04.6]} 25. Rxf8+ {[%clk 0:02:19.9]} 25... Bxf8 {[%clk 0:01:03.8]} 26. Rxb7
{[%clk 0:02:19.5]} 26... Nxe5 {[%clk 0:01:00.9]} 27. h3 {[%clk 0:02:18.5]} 27...
h6 {[%clk 0:00:52.4]} 28. Kg2 {[%clk 0:02:17.9]} 28... Nc4 {[%clk 0:00:48.2]}
29. c3 {[%clk 0:02:08]} 29... Kh7 {[%clk 0:00:21.8]} 30. b3 {[%clk 0:02:06.1]}
30... Ne3+ {[%clk 0:00:20]} 31. Kf3 {[%clk 0:02:04.8]} 31... Nd5 {[%clk
0:00:19.2]} 32. c4 {[%clk 0:02:03.7]} 32... Nb4 {[%clk 0:00:18.1]} 33. Ra7
{[%clk 0:02:00.6]} 33... Kg6 {[%clk 0:00:16]} 34. Rxa5 {[%clk 0:01:59.3]} 34...
Nc2 {[%clk 0:00:15.8]} 35. Ra8 {[%clk 0:01:55.2]} 35... Bb4 {[%clk 0:00:12.6]}
36. Rd8 {[%clk 0:01:50.2]} 36... Kf7 {[%clk 0:00:09.9]} 37. c5 {[%clk
0:01:43.5]} 37... e5 {[%clk 0:00:08.6]} 38. Rd7+ {[%clk 0:01:39.8]} 38... Kf8
{[%clk 0:00:08.2]} 39. Rd6 {[%clk 0:01:26.1]} 39... Nd4+ {[%clk 0:00:07.7]} 40.
Ke3 {[%clk 0:01:25.7]} 40... Nxb3 {[%clk 0:00:06.3]} 41. Rxc6 {[%clk 0:01:25.2]}
41... Kf7 {[%clk 0:00:06]} 42. Rb6 {[%clk 0:01:20.4]} 42... Bxc5+ {[%clk
0:00:05.2]} 43. Nxc5 {[%clk 0:01:20.2]} 43... Nxc5 {[%clk 0:00:04.8]} 44. a5
{[%clk 0:01:20.3]} 44... g5 {[%clk 0:00:03]} 45. a6 {[%clk 0:01:19.8]} 45...
Nxa6 {[%clk 0:00:02.8]} 46. Rxa6 {[%clk 0:01:19.7]} 46... Kg7 {[%clk 0:00:03.7]}
47. Ke4 {[%clk 0:01:19.3]} 47... Kf7 {[%clk 0:00:03.5]} 48. Kxe5 {[%clk
0:01:18.9]} 48... Kg7 {[%clk 0:00:03.8]} 49. Kf5 {[%clk 0:01:18.4]} 49... Kf7
{[%clk 0:00:03.7]} 50. Rxh6 {[%clk 0:01:17.7]} 50... Kg7 {[%clk 0:00:03.4]} 51.
Kxg5 {[%clk 0:01:18.6]} 51... Kf7 {[%clk 0:00:03.2]} 52. h4 {[%clk 0:01:19.5]}
52... Kg7 {[%clk 0:00:02.5]} 53. h5 {[%clk 0:01:20.4]} 53... Kf7 {[%clk
0:00:01.8]} 54. Ra6 {[%clk 0:01:21.3]} 54... Ke7 {[%clk 0:00:01.1]} 55. h6
{[%clk 0:01:21.2]} 55... Kf7 {[%clk 0:00:01.2]} 56. Ra7+ {[%clk 0:01:20.3]} 1-0

[Event "*** Titled Tuesday Blitz"]
[Site "Chess.com"]
[Date "2021.03.02"]
[Round "3"]
[White "organdzievhren"]
[Black "anon102030"]
[Result "0-1"]
[WhiteElo "2431"]
[BlackElo "2705"]
[TimeControl "180+1"]
[EndTime "10:28:29 PST"]
[Termination "anon102030 won by resignation"]

1. e4 {[%clk 0:03:00.9]} 1... e5 {[%clk 0:02:54]} 2. Nf3 {[%clk 0:03:00.6]} 2...
Nc6 {[%clk 0:02:54.4]} 3. Bb5 {[%clk 0:03:01.1]} 3... Nge7 {[%clk 0:02:53.2]} 4.
O-O {[%clk 0:03:00.2]} 4... d6 {[%clk 0:02:53.3]} 5. h3 {[%clk 0:02:58.6]} 5...
Bd7 {[%clk 0:02:51.7]} 6. c4 {[%clk 0:02:56.1]} 6... g6 {[%clk 0:02:48.9]} 7. d4
{[%clk 0:02:52.9]} 7... exd4 {[%clk 0:02:47.1]} 8. Nxd4 {[%clk 0:02:53]} 8...
Bg7 {[%clk 0:02:44]} 9. Be3 {[%clk 0:02:52.6]} 9... O-O {[%clk 0:02:40]} 10. Nc3
{[%clk 0:02:51.4]} 10... f5 {[%clk 0:02:39.2]} 11. exf5 {[%clk 0:02:50.4]} 11...
Nxf5 {[%clk 0:02:40.1]} 12. Nxf5 {[%clk 0:02:48.3]} 12... Bxf5 {[%clk
0:02:27.1]} 13. Qd5+ {[%clk 0:02:41.9]} 13... Rf7 {[%clk 0:02:26.6]} 14. Bxc6
{[%clk 0:02:41.1]} 14... bxc6 {[%clk 0:02:26.2]} 15. Qxc6 {[%clk 0:02:41.4]}
15... Rb8 {[%clk 0:02:24.1]} 16. Rad1 {[%clk 0:02:09.8]} 16... Rxb2 {[%clk
0:02:21.1]} 17. Bd4 {[%clk 0:02:02.9]} 17... Rc2 {[%clk 0:02:10.7]} 18. Nd5
{[%clk 0:01:34.1]} 18... Rxa2 {[%clk 0:01:49.9]} 19. Bxg7 {[%clk 0:01:32.2]}
19... Kxg7 {[%clk 0:01:39.5]} 20. Ra1 {[%clk 0:01:32.1]} 20... Rxa1 {[%clk
0:01:24.5]} 21. Rxa1 {[%clk 0:01:33]} 21... Qh4 {[%clk 0:01:11]} 22. Nxc7 {[%clk
0:01:01.9]} 22... Qxf2+ {[%clk 0:01:07.2]} 23. Kxf2 {[%clk 0:01:00.7]} 23...
Be4+ {[%clk 0:01:07.7]} 24. Kg3 {[%clk 0:00:58.4]} 24... Bxc6 {[%clk 0:01:08.6]}
25. Rxa7 {[%clk 0:00:57]} 25... Kf6 {[%clk 0:00:57.5]} 26. h4 {[%clk 0:00:43]}
26... h6 {[%clk 0:00:56.4]} 27. Nb5 {[%clk 0:00:36.7]} 27... Rxa7 {[%clk
0:00:31.1]} 28. Nxa7 {[%clk 0:00:34.8]} 28... Bb7 {[%clk 0:00:31.9]} 29. Nb5
{[%clk 0:00:28.9]} 29... Ke5 {[%clk 0:00:30.7]} 30. Kf2 {[%clk 0:00:29.1]} 30...
Bc6 {[%clk 0:00:26.4]} 31. Ke3 {[%clk 0:00:24.5]} 31... Bxg2 {[%clk 0:00:22]}
32. Nd4 {[%clk 0:00:24.3]} 32... Be4 {[%clk 0:00:19.5]} 33. Ne2 {[%clk 0:00:24]}
33... g5 {[%clk 0:00:19]} 34. hxg5 {[%clk 0:00:23]} 34... hxg5 {[%clk
0:00:19.9]} 35. Ng3 {[%clk 0:00:23]} 35... Bg6 {[%clk 0:00:19.8]} 36. Ne2 {[%clk
0:00:22.4]} 36... Bf7 {[%clk 0:00:19]} 37. Kd3 {[%clk 0:00:21.4]} 37... g4
{[%clk 0:00:19.6]} 38. Ng3 {[%clk 0:00:12.3]} 38... Kf4 {[%clk 0:00:19.4]} 39.
Ne2+ {[%clk 0:00:12.5]} 39... Kf3 {[%clk 0:00:19.8]} 40. Nd4+ {[%clk 0:00:12.2]}
40... Kf2 {[%clk 0:00:18.1]} 41. Nf5 {[%clk 0:00:11.2]} 41... Bg6 {[%clk
0:00:18.1]} 0-1

[Event "*** Titled Tuesday Blitz"]
[Site "Chess.com"]
[Date "2021.03.02"]
[Round "3"]
[White "Lyschko"]
[Black "kleopl"]
[Result "0-1"]
[WhiteElo "2186"]
[BlackElo "2488"]
[TimeControl "180+1"]
[EndTime "10:28:29 PST"]
[Termination "kleopl won on time"]

1. c4 {[%clk 0:03:00.9]} 1... f5 {[%clk 0:02:57.9]} 2. g3 {[%clk 0:02:59.9]}
2... Nf6 {[%clk 0:02:57.9]} 3. Bg2 {[%clk 0:02:59.9]} 3... e5 {[%clk 0:02:56.6]}
4. d4 {[%clk 0:02:55]} 4... e4 {[%clk 0:02:55.5]} 5. f3 {[%clk 0:02:51.7]} 5...
c6 {[%clk 0:02:51.5]} 6. d5 {[%clk 0:02:45.5]} 6... Bb4+ {[%clk 0:02:44.7]} 7.
Bd2 {[%clk 0:02:37.9]} 7... Qa5 {[%clk 0:02:43.9]} 8. Nc3 {[%clk 0:02:31.6]}
8... O-O {[%clk 0:02:34.2]} 9. fxe4 {[%clk 0:02:23.6]} 9... fxe4 {[%clk
0:02:29.7]} 10. Nxe4 {[%clk 0:02:18.9]} 10... Nxe4 {[%clk 0:02:22.2]} 11. Bxe4
{[%clk 0:02:18.3]} 11... Qc5 {[%clk 0:02:14]} 12. Nf3 {[%clk 0:02:08.3]} 12...
d6 {[%clk 0:02:09.6]} 13. Bxb4 {[%clk 0:01:50.6]} 13... Qxb4+ {[%clk 0:02:08]}
14. Qd2 {[%clk 0:01:50.4]} 14... Qxc4 {[%clk 0:02:01.4]} 15. Qd3 {[%clk
0:01:06.7]} 15... Qxd3 {[%clk 0:02:00.6]} 16. exd3 {[%clk 0:01:04.7]} 16... c5
{[%clk 0:01:48]} 17. O-O {[%clk 0:01:01.6]} 17... Bh3 {[%clk 0:01:46.9]} 18.
Rfe1 {[%clk 0:00:57.5]} 18... Nd7 {[%clk 0:01:39.3]} 19. Bxh7+ {[%clk
0:00:56.8]} 19... Kxh7 {[%clk 0:01:40.2]} 20. Ng5+ {[%clk 0:00:56.8]} 20... Kg8
{[%clk 0:01:39.2]} 21. Nxh3 {[%clk 0:00:56.7]} 21... Ne5 {[%clk 0:01:39.4]} 22.
Re3 {[%clk 0:00:46.9]} 22... Rae8 {[%clk 0:01:34.2]} 23. Nf4 {[%clk 0:00:40.6]}
23... Re7 {[%clk 0:00:49.4]} 24. Kg2 {[%clk 0:00:38.9]} 24... Rf6 {[%clk
0:00:47.5]} 25. Rae1 {[%clk 0:00:37.3]} 25... Ref7 {[%clk 0:00:46.2]} 26. R1e2
{[%clk 0:00:30.2]} 26... g5 {[%clk 0:00:42.3]} 27. Ne6 {[%clk 0:00:29]} 27...
Rf5 {[%clk 0:00:37.3]} 28. h3 {[%clk 0:00:25.7]} 28... Ng6 {[%clk 0:00:30.2]}
29. Nd8 {[%clk 0:00:07.3]} 29... Rd7 {[%clk 0:00:28.4]} 30. Ne6 {[%clk
0:00:06.5]} 30... Rxd5 {[%clk 0:00:26.3]} 31. Rf3 {[%clk 0:00:03.2]} 31... b6
{[%clk 0:00:17.3]} 32. Rf6 {[%clk 0:00:03.1]} 32... Ne5 {[%clk 0:00:15.1]} 33.
Ref2 {[%clk 0:00:02.4]} 33... Nxd3 {[%clk 0:00:11.2]} 0-1

[Event "*** Titled Tuesday Blitz"]
[Site "Chess.com"]
[Date "2021.03.02"]
[Round "3"]
[White "zajka-molotok"]
[Black "Trovita84"]
[Result "1/2-1/2"]
[WhiteElo "2470"]
[BlackElo "2047"]
[TimeControl "180+1"]
[EndTime "10:28:29 PST"]
[Termination "Game drawn by repetition"]

1. b4 {[%clk 0:02:59.2]} 1... e5 {[%clk 0:02:55.7]} 2. Bb2 {[%clk 0:02:57.9]}
2... d6 {[%clk 0:02:53.4]} 3. e3 {[%clk 0:02:57.1]} 3... Bf5 {[%clk 0:02:52.9]}
4. Nf3 {[%clk 0:02:55.9]} 4... Nd7 {[%clk 0:02:51.8]} 5. d4 {[%clk 0:02:55.3]}
5... exd4 {[%clk 0:02:51.3]} 6. Nxd4 {[%clk 0:02:53.9]} 6... Bg6 {[%clk
0:02:51.5]} 7. c4 {[%clk 0:02:48.2]} 7... Ngf6 {[%clk 0:02:50.7]} 8. Be2 {[%clk
0:02:46.8]} 8... Be7 {[%clk 0:02:50.5]} 9. O-O {[%clk 0:02:46.9]} 9... O-O
{[%clk 0:02:44.8]} 10. Nc3 {[%clk 0:02:46.9]} 10... a6 {[%clk 0:02:36.3]} 11.
Bf3 {[%clk 0:02:45.3]} 11... Rb8 {[%clk 0:02:34.3]} 12. a4 {[%clk 0:02:43.1]}
12... c5 {[%clk 0:02:33.2]} 13. bxc5 {[%clk 0:02:32]} 13... dxc5 {[%clk
0:02:34.1]} 14. Nb3 {[%clk 0:02:24.7]} 14... Nb6 {[%clk 0:02:32.6]} 15. Na5
{[%clk 0:02:13.9]} 15... Qc7 {[%clk 0:02:23.8]} 16. Qe2 {[%clk 0:02:04]} 16...
Rfd8 {[%clk 0:02:21.9]} 17. Rfd1 {[%clk 0:02:02.9]} 17... Nbd7 {[%clk
0:02:01.4]} 18. Nb3 {[%clk 0:01:54.1]} 18... Ne5 {[%clk 0:01:59.7]} 19. Nd5
{[%clk 0:01:31.7]} 19... Nxf3+ {[%clk 0:01:55.6]} 20. Qxf3 {[%clk 0:01:32.6]}
20... Nxd5 {[%clk 0:01:50.1]} 21. Rxd5 {[%clk 0:01:24.7]} 21... f6 {[%clk
0:01:42.7]} 22. a5 {[%clk 0:01:20.2]} 22... Bf7 {[%clk 0:01:41.6]} 23. Rxd8+
{[%clk 0:01:17.5]} 23... Rxd8 {[%clk 0:01:42.5]} 24. Rc1 {[%clk 0:01:05.7]}
24... Rd3 {[%clk 0:01:39.8]} 25. Rc3 {[%clk 0:00:37.3]} 25... Rxc3 {[%clk
0:01:36.9]} 26. Bxc3 {[%clk 0:00:38.2]} 26... Bxc4 {[%clk 0:01:36.7]} 27. Nd2
{[%clk 0:00:38]} 27... Bf7 {[%clk 0:01:29.1]} 28. h4 {[%clk 0:00:37.1]} 28...
Qd7 {[%clk 0:01:20]} 29. Ne4 {[%clk 0:00:24.3]} 29... Bd5 {[%clk 0:01:15.3]} 30.
Qf4 {[%clk 0:00:23.5]} 30... Qe6 {[%clk 0:00:32.2]} 31. Qb8+ {[%clk 0:00:18.9]}
31... Kf7 {[%clk 0:00:32.1]} 32. Ng3 {[%clk 0:00:18.9]} 32... Bd6 {[%clk
0:00:29]} 33. Qa8 {[%clk 0:00:15.9]} 33... Bxg3 {[%clk 0:00:28.8]} 34. fxg3
{[%clk 0:00:15.7]} 34... Qxe3+ {[%clk 0:00:28.7]} 35. Kh2 {[%clk 0:00:16.2]}
35... Qxc3 {[%clk 0:00:28.6]} 36. Qd8 {[%clk 0:00:16]} 36... Qe5 {[%clk
0:00:27.2]} 37. Qd7+ {[%clk 0:00:15.9]} 37... Kg6 {[%clk 0:00:26.6]} 38. Qg4+
{[%clk 0:00:15.6]} 38... Kf7 {[%clk 0:00:25.6]} 39. Qd7+ {[%clk 0:00:15.5]}
39... Kf8 {[%clk 0:00:12.1]} 40. Qd8+ {[%clk 0:00:15.2]} 40... Kf7 {[%clk
0:00:11.7]} 41. Qd7+ {[%clk 0:00:15.5]} 1/2-1/2

[Event "*** Titled Tuesday Blitz"]
[Site "Chess.com"]
[Date "2021.03.02"]
[Round "3"]
[White "NoGuru"]
[Black "atwalcb"]
[Result "0-1"]
[WhiteElo "2296"]
[BlackElo "2528"]
[TimeControl "180+1"]
[EndTime "10:28:30 PST"]
[Termination "atwalcb won on time"]

1. Nf3 {[%clk 0:03:00.9]} 1... d6 {[%clk 0:02:59.6]} 2. d4 {[%clk 0:03:00]} 2...
Bg4 {[%clk 0:02:59]} 3. c4 {[%clk 0:02:59.8]} 3... Bxf3 {[%clk 0:02:57.7]} 4.
exf3 {[%clk 0:02:59.4]} 4... c6 {[%clk 0:02:58.2]} 5. Bd3 {[%clk 0:02:52.2]}
5... g6 {[%clk 0:02:58.3]} 6. O-O {[%clk 0:02:51.8]} 6... Bg7 {[%clk 0:02:58.7]}
7. Re1 {[%clk 0:02:51.1]} 7... e6 {[%clk 0:02:54.5]} 8. d5 {[%clk 0:02:50]} 8...
cxd5 {[%clk 0:02:47.6]} 9. cxd5 {[%clk 0:02:50.2]} 9... e5 {[%clk 0:02:47.6]}
10. f4 {[%clk 0:02:44.4]} 10... Nd7 {[%clk 0:02:43.9]} 11. fxe5 {[%clk
0:02:41.5]} 11... dxe5 {[%clk 0:02:43.6]} 12. Nc3 {[%clk 0:02:30.4]} 12... Ne7
{[%clk 0:02:39.7]} 13. d6 {[%clk 0:02:23.4]} 13... Nc6 {[%clk 0:02:36.2]} 14.
Nd5 {[%clk 0:02:19.5]} 14... O-O {[%clk 0:02:34.7]} 15. Bb5 {[%clk 0:02:04.2]}
15... Nd4 {[%clk 0:02:19.8]} 16. Bc4 {[%clk 0:01:34.3]} 16... Nb6 {[%clk
0:02:07.8]} 17. Nxb6 {[%clk 0:01:09.2]} 17... Qxb6 {[%clk 0:02:03.1]} 18. Be3
{[%clk 0:01:02.5]} 18... Qxd6 {[%clk 0:02:02.9]} 19. Bxd4 {[%clk 0:00:59.9]}
19... exd4 {[%clk 0:02:03.5]} 20. Qf3 {[%clk 0:00:58.6]} 20... Rab8 {[%clk
0:01:56.7]} 21. Rad1 {[%clk 0:00:57.9]} 21... b5 {[%clk 0:01:56.6]} 22. Bb3
{[%clk 0:00:53]} 22... a5 {[%clk 0:01:55.6]} 23. Qd5 {[%clk 0:00:43.8]} 23...
Qxd5 {[%clk 0:01:45.9]} 24. Bxd5 {[%clk 0:00:43.2]} 24... Rfd8 {[%clk
0:01:45.4]} 25. Be4 {[%clk 0:00:38.2]} 25... Re8 {[%clk 0:01:30.1]} 26. Bd3
{[%clk 0:00:30.6]} 26... Kf8 {[%clk 0:01:28.6]} 27. Rxe8+ {[%clk 0:00:28.2]}
27... Kxe8 {[%clk 0:01:28.8]} 28. Rc1 {[%clk 0:00:27.8]} 28... Bf8 {[%clk
0:01:19.1]} 29. Rc7 {[%clk 0:00:18.5]} 29... Bd6 {[%clk 0:01:18.9]} 30. Ra7
{[%clk 0:00:17.4]} 30... a4 {[%clk 0:01:19.1]} 31. Be4 {[%clk 0:00:16]} 31...
Kf8 {[%clk 0:01:16]} 32. Ra8 {[%clk 0:00:14.5]} 32... Rxa8 {[%clk 0:01:15.1]}
33. Bxa8 {[%clk 0:00:14.7]} 33... d3 {[%clk 0:01:12.7]} 34. Bf3 {[%clk
0:00:11.2]} 34... Be5 {[%clk 0:01:06]} 35. b3 {[%clk 0:00:10.7]} 35... axb3
{[%clk 0:01:04.1]} 36. axb3 {[%clk 0:00:11.6]} 36... Ke7 {[%clk 0:01:04.3]} 37.
Kf1 {[%clk 0:00:11.1]} 37... Kd6 {[%clk 0:01:04.4]} 38. Be4 {[%clk 0:00:11]}
38... d2 {[%clk 0:01:01.8]} 39. Ke2 {[%clk 0:00:11]} 39... Bc3 {[%clk
0:01:02.4]} 40. Bd3 {[%clk 0:00:10.8]} 40... Kc5 {[%clk 0:01:01.8]} 41. h3
{[%clk 0:00:09.6]} 41... Kb4 {[%clk 0:01:01.3]} 42. Bc2 {[%clk 0:00:09.7]} 42...
Ka3 {[%clk 0:01:01.3]} 43. g4 {[%clk 0:00:09.8]} 43... Kb2 {[%clk 0:01:01.2]}
44. Kd1 {[%clk 0:00:07.7]} 44... Ba5 {[%clk 0:00:58.7]} 45. Bd3 {[%clk
0:00:07.3]} 45... Kxb3 {[%clk 0:00:52.3]} 46. Bxb5 {[%clk 0:00:07.3]} 46... Kc3
{[%clk 0:00:52.7]} 47. Be8 {[%clk 0:00:07.2]} 47... f6 {[%clk 0:00:48]} 48. f4
{[%clk 0:00:07.2]} 48... Kd3 {[%clk 0:00:46.3]} 49. f5 {[%clk 0:00:05.8]} 49...
g5 {[%clk 0:00:46.1]} 0-1

[Event "*** Titled Tuesday Blitz"]
[Site "Chess.com"]
[Date "2021.03.02"]
[Round "3"]
[White "alexrustemov"]
[Black "Hikaru"]
[Result "0-1"]
[WhiteElo "2724"]
[BlackElo "3241"]
[TimeControl "180+1"]
[EndTime "10:28:31 PST"]
[Termination "Hikaru won on time"]

1. d4 {[%clk 0:03:00.9]} 1... g6 {[%clk 0:02:58.7]} 2. c4 {[%clk 0:03:01]} 2...
Bg7 {[%clk 0:02:59.1]} 3. Nc3 {[%clk 0:03:00.9]} 3... c5 {[%clk 0:02:59.6]} 4.
d5 {[%clk 0:03:01.1]} 4... Bxc3+ {[%clk 0:03:00.4]} 5. bxc3 {[%clk 0:03:01.7]}
5... Qa5 {[%clk 0:03:00.3]} 6. e4 {[%clk 0:02:52.5]} 6... Qxc3+ {[%clk 0:03:00]}
7. Bd2 {[%clk 0:02:52.3]} 7... Qg7 {[%clk 0:03:00.6]} 8. Rc1 {[%clk 0:02:50.4]}
8... d6 {[%clk 0:02:57]} 9. Bc3 {[%clk 0:02:50.1]} 9... f6 {[%clk 0:02:57.5]}
10. f4 {[%clk 0:02:49.8]} 10... Nh6 {[%clk 0:02:54.5]} 11. Nf3 {[%clk
0:02:47.9]} 11... Nf7 {[%clk 0:02:54.2]} 12. Bd3 {[%clk 0:02:40.8]} 12... g5
{[%clk 0:02:54.1]} 13. e5 {[%clk 0:02:37.2]} 13... gxf4 {[%clk 0:02:51.1]} 14.
exf6 {[%clk 0:02:33.5]} 14... exf6 {[%clk 0:02:49.4]} 15. O-O {[%clk 0:02:30.7]}
15... Bg4 {[%clk 0:02:34.2]} 16. Qd2 {[%clk 0:02:06.2]} 16... Ne5 {[%clk
0:02:28.3]} 17. Nh4 {[%clk 0:01:53.8]} 17... Qg5 {[%clk 0:02:12.5]} 18. Rxf4
{[%clk 0:00:56.7]} 18... Qxh4 {[%clk 0:01:57.6]} 19. h3 {[%clk 0:00:49.1]} 19...
h5 {[%clk 0:01:57.4]} 20. Bxe5 {[%clk 0:00:25.4]} 20... dxe5 {[%clk 0:01:49.8]}
21. Bg6+ {[%clk 0:00:24.3]} 21... Kd8 {[%clk 0:01:47.9]} 22. Re4 {[%clk
0:00:22.1]} 22... Nd7 {[%clk 0:01:39.1]} 23. d6 {[%clk 0:00:16.3]} 23... Rg8
{[%clk 0:01:35.4]} 24. Qd5 {[%clk 0:00:08.6]} 24... Rg7 {[%clk 0:01:21]} 25. Bf5
{[%clk 0:00:06.1]} 25... Qg5 {[%clk 0:01:19.5]} 26. hxg4 {[%clk 0:00:03.3]}
26... Qxc1+ {[%clk 0:01:19]} 27. Kf2 {[%clk 0:00:03.7]} 27... hxg4 {[%clk
0:01:02.5]} 28. Qe6 {[%clk 0:00:03.9]} 28... g3+ {[%clk 0:01:00.8]} 29. Ke2
{[%clk 0:00:04.2]} 29... Qc2+ {[%clk 0:00:58.8]} 30. Ke1 {[%clk 0:00:04.5]}
30... Qf2+ {[%clk 0:00:58]} 31. Kd1 {[%clk 0:00:03.9]} 31... Qg1+ {[%clk
0:00:58.3]} 32. Kd2 {[%clk 0:00:03.6]} 32... Qxg2+ {[%clk 0:00:57.8]} 33. Re2
{[%clk 0:00:03.8]} 33... Qh1 {[%clk 0:00:15.4]} 34. Be4 {[%clk 0:00:04.1]} 34...
Qh6+ {[%clk 0:00:14.8]} 35. Kc2 {[%clk 0:00:03.5]} 35... Qh4 {[%clk 0:00:12.4]}
36. Bg2 {[%clk 0:00:02.9]} 36... Qg4 {[%clk 0:00:12]} 37. Qd5 {[%clk 0:00:01.7]}
37... Qxe2+ {[%clk 0:00:12.1]} 0-1

[Event "*** Titled Tuesday Blitz"]
[Site "Chess.com"]
[Date "2021.03.02"]
[Round "3"]
[White "LionTheLeon_06"]
[Black "Duhless"]
[Result "0-1"]
[WhiteElo "2711"]
[BlackElo "3080"]
[TimeControl "180+1"]
[EndTime "10:28:33 PST"]
[Termination "Duhless won by resignation"]

1. c4 {[%clk 0:03:00.9]} 1... Nf6 {[%clk 0:02:57.8]} 2. Nc3 {[%clk 0:02:59.9]}
2... e5 {[%clk 0:02:56.3]} 3. g3 {[%clk 0:02:56.3]} 3... d5 {[%clk 0:02:54.8]}
4. cxd5 {[%clk 0:02:56]} 4... Nxd5 {[%clk 0:02:55.7]} 5. Bg2 {[%clk 0:02:56.7]}
5... Nxc3 {[%clk 0:02:56.3]} 6. bxc3 {[%clk 0:02:56.4]} 6... Nc6 {[%clk
0:02:57]} 7. d3 {[%clk 0:02:52.3]} 7... Bc5 {[%clk 0:02:56.6]} 8. Nf3 {[%clk
0:02:52.4]} 8... O-O {[%clk 0:02:56]} 9. O-O {[%clk 0:02:52]} 9... Rb8 {[%clk
0:02:56]} 10. a4 {[%clk 0:02:50.6]} 10... b6 {[%clk 0:02:51.4]} 11. Bb2 {[%clk
0:02:38.4]} 11... Qe7 {[%clk 0:02:43.6]} 12. Qc2 {[%clk 0:02:26.8]} 12... Bb7
{[%clk 0:02:36.3]} 13. d4 {[%clk 0:02:21.3]} 13... Bd6 {[%clk 0:02:35]} 14. Rfe1
{[%clk 0:01:49]} 14... Rfe8 {[%clk 0:02:31.5]} 15. Nd2 {[%clk 0:01:48.3]} 15...
Na5 {[%clk 0:02:29.7]} 16. Bxb7 {[%clk 0:01:44.5]} 16... Rxb7 {[%clk 0:02:28.6]}
17. e4 {[%clk 0:01:45]} 17... Rbb8 {[%clk 0:02:25.7]} 18. Qd3 {[%clk 0:01:44.1]}
18... Rbd8 {[%clk 0:02:23.9]} 19. d5 {[%clk 0:01:41.1]} 19... Nb7 {[%clk
0:02:11.9]} 20. Nb3 {[%clk 0:01:40.9]} 20... a5 {[%clk 0:02:04.9]} 21. c4 {[%clk
0:01:37.5]} 21... Nc5 {[%clk 0:02:03.3]} 22. Nxc5 {[%clk 0:01:37.3]} 22... Bxc5
{[%clk 0:02:04.2]} 23. Ba3 {[%clk 0:01:32]} 23... h5 {[%clk 0:01:49.6]} 24. h4
{[%clk 0:01:26.7]} 24... g6 {[%clk 0:01:46.8]} 25. Kg2 {[%clk 0:01:26.6]} 25...
Bxa3 {[%clk 0:01:42]} 26. Qxa3 {[%clk 0:01:22]} 26... Qf6 {[%clk 0:01:39.5]} 27.
c5 {[%clk 0:01:16.7]} 27... c6 {[%clk 0:01:37.7]} 28. d6 {[%clk 0:00:55.9]}
28... bxc5 {[%clk 0:01:36.7]} 29. Qxc5 {[%clk 0:00:56.1]} 29... Rxd6 {[%clk
0:01:33]} 30. Qxa5 {[%clk 0:00:56]} 30... Red8 {[%clk 0:01:31.6]} 31. Re2 {[%clk
0:00:50.4]} 31... Rd3 {[%clk 0:01:30.1]} 32. Kg1 {[%clk 0:00:40.7]} 32... g5
{[%clk 0:01:08.8]} 33. hxg5 {[%clk 0:00:16]} 33... Qxg5 {[%clk 0:01:09.7]} 34.
Kg2 {[%clk 0:00:03.5]} 34... h4 {[%clk 0:01:02.9]} 35. Rh1 {[%clk 0:00:03.3]}
35... hxg3 {[%clk 0:00:33.9]} 36. f3 {[%clk 0:00:02]} 36... Qf4 {[%clk
0:00:24.9]} 37. Rf1 {[%clk 0:00:01.1]} 37... Rd2 {[%clk 0:00:25.4]} 38. Re1
{[%clk 0:00:01.6]} 38... R8d3 {[%clk 0:00:21.9]} 39. Rxd2 {[%clk 0:00:01]} 39...
Rxd2+ {[%clk 0:00:20.8]} 0-1